bitfinex/quotes_ETHUSD_20251010
["timestamp","ask_amount","ask_price","bid_price","bid_amount"]
[1760129065529,30.0,4026.5,4026.2,18.363]
[1760129065963,30.0,4026.3,4026.2,14.5]
[1760129066164,34.86096987,4026.3,4026.2,14.5]
[1760129066367,30.0,4025.9,4025.7,3.859]
[1760129066572,1.92,4025.9,4025.1,0.002]
[1760129066782,30.0,4025.2,4025.1,0.002]
[1760129066983,31.92,4026.2,4025.1,0.002]
[1760129067258,1.92,4025.8,4025.1,4.2517846]
[1760129067423,30.0,4025.6,4025.1,4.2517846]
[1760129067628,25.776,4025.6,4025.1,4.2517846]
[1760129067838,1.92,4026.1,4025.1,4.2517846]
[1760129068038,30.0,4026.5,4025.2,0.4324]
[1760129068278,0.84169576,4026.7,4025.3,0.46841846]
[1760129068279,30.0,4026.1,4025.3,0.46841846]
[1760129068475,30.0,4026.1,4025.4,14.5]
[1760129068476,30.0,4026.0,4025.4,14.5]
[1760129068867,2.48387243,4026.0,4025.5,3.862]
[1760129069250,30.0,4026.1,4025.5,3.862]
[1760129069446,0.38959576,4026.7,4025.7,0.6336]
[1760129069752,2.48306797,4027.3,4026.4,2.48359211]
[1760129069950,30.0,4027.3,4026.5,6.3465386]
[1760129070259,30.0,4027.3,4026.6,6.34648467]
[1760129070574,30.0,4027.3,4026.3,2.91605622]
[1760129070575,30.0,4027.4,4026.7,14.5]
[1760129070742,32.48336147,4026.8,4026.7,14.5]
[1760129070949,32.93526147,4026.8,4026.7,14.5]
[1760129071176,32.93526147,4026.8,4025.3,0.46841846]
[1760129071513,30.0,4026.0,4025.4,2.921]
[1760129071669,30.0,4026.1,4025.5,14.5]
[1760129072890,3.864,4026.3,4025.5,14.5]
[1760129072891,30.0,4026.0,4025.5,14.5]
[1760129073098,30.0,4026.2,4025.5,14.5]
[1760129073506,30.0,4026.2,4025.6,3.862]
[1760129073669,7.411,4026.2,4025.6,3.862]
[1760129073865,17.411,4026.2,4025.6,3.862]
[1760129074111,17.411,4026.2,4025.7,14.5]
[1760129074407,30.0,4026.0,4025.7,14.5]
[1760129074882,2.48380539,4026.1,4025.7,14.5]
[1760129075078,21.542,4026.1,4025.7,14.5]
[1760129075582,21.319,4026.1,4025.7,14.5]
[1760129076292,2.48391435,4026.0,4025.7,14.5]
[1760129077086,30.0,4026.0,4025.7,14.5]
[1760129077310,3.862,4026.5,4025.7,14.5]
[1760129077311,0.4519,4027.3,4025.8,0.45723978]
[1760129077607,30.0,4026.9,4025.9,3.86]
[1760129077902,30.0,4026.9,4026.0,14.5]
[1760129077903,2.4835931,4026.5,4026.0,14.5]
[1760129078203,30.0,4026.4,4026.0,14.5]
[1760129078409,2.48360966,4026.4,4026.0,14.5]
[1760129078703,10.0,4026.9,4026.1,3.863]
[1760129078908,2.4829729,4027.5,4026.3,2.48362193]
[1760129078909,4.993,4027.4,4026.3,2.48362193]
[1760129079207,2.48331085,4026.9,4026.4,3.862]
[1760129079381,2.48317647,4027.1,4026.4,18.362]
[1760129079714,2.48326272,4027.0,4026.4,18.362]
[1760129080020,2.93495819,4027.3,4026.4,18.362]
[1760129080021,30.0,4027.5,4026.5,2.5024]
[1760129080188,30.0,4027.3,4026.6,4.56992482]
[1760129080391,2.48307451,4027.3,4026.7,3.867]
[1760129081304,30.0,4027.4,4026.7,6.35040529]
[1760129081508,30.0,4027.5,4026.7,3.867]
[1760129081801,30.0,4027.3,4026.8,0.02483361]
[1760129082007,30.0,4027.3,4026.7,6.35036916]
[1760129082193,30.0,4027.3,4026.7,6.83897388]
[1760129082675,2.48303886,4027.4,4026.7,4.35560472]
[1760129082887,21.314,4027.3,4026.7,6.83898617]
[1760129083088,30.0,4027.4,4026.7,4.35560472]
[1760129083289,30.0,4027.5,4026.7,4.35560472]
[1760129083495,2.48290472,4027.6,4026.7,4.35560472]
[1760129083496,0.4041,4027.6,4026.7,0.48860472]
[1760129083717,2.483219,4027.1,4026.8,3.866]
[1760129083926,30.4041,4027.1,4026.4,14.5]
[1760129084084,32.48323867,4027.0,4026.5,3.865]
[1760129084289,12.48340885,4026.8,4026.5,3.865]
[1760129084519,2.48340885,4026.8,4026.5,3.865]
[1760129084719,1.92,4027.1,4026.4,14.5]
[1760129084925,42.4835465,4026.5,4026.4,3.866]
[1760129085128,42.4835465,4026.5,4025.1,0.002]
[1760129085129,30.0,4026.1,4025.1,0.002]
[1760129085335,2.48393661,4025.9,4025.1,0.002]
[1760129085635,32.4839492,4025.9,4025.1,14.79435812]
[1760129085795,4.2711,4026.2,4025.1,14.79435812]
[1760129085796,30.0,4025.5,4025.1,14.502]
[1760129085990,0.1975,4025.9,4025.1,14.502]
[1760129086195,0.1975,4025.9,4025.1,0.002]
[1760129086196,32.4843486,4025.2,4025.1,0.002]
[1760129086396,32.4843486,4025.2,4025.1,3.871]
[1760129086607,32.8863486,4025.2,4025.1,3.871]
[1760129086922,34.8063486,4025.2,4025.1,0.002]
[1760129087124,4.8063486,4025.2,4025.1,0.002]
[1760129087322,44.8063486,4025.2,4025.1,0.002]
[1760129087638,34.8063486,4025.2,4025.1,0.002]
[1760129093193,4.8063486,4025.2,4025.1,0.002]
[1760129093399,34.8063486,4025.2,4025.1,0.002]
[1760129093594,32.8863486,4025.2,4025.1,0.002]
[1760129093909,19.2533486,4025.2,4025.1,0.002]
[1760129094299,30.0,4025.5,4025.1,0.002]
[1760129094808,25.999,4025.2,4025.1,0.002]
[1760129095137,1.92,4025.6,4025.1,0.002]
[1760129095301,1.92,4025.4,4025.2,3.863]
[1760129095503,1.92,4025.5,4025.2,4.54457861]
[1760129095727,1.92,4025.5,4025.3,14.5]
[1760129096094,2.48405864,4025.7,4025.3,14.5]
[1760129096291,3.743,4025.6,4025.3,14.5]
[1760129096497,2.48379324,4026.1,4025.4,0.02484225]
[1760129096725,12.48378748,4026.2,4025.4,0.02484225]
[1760129096726,2.48409268,4025.7,4025.4,0.02484225]
[1760129097235,2.48409268,4025.7,4025.5,14.5]
[1760129097432,1.92,4025.8,4025.5,14.5]
[1760129097817,1.92,4026.1,4025.5,14.5]
[1760129098230,11.92,4025.9,4025.6,0.02484101]
[1760129098447,1.92,4025.9,4025.7,3.861]
[1760129098610,13.256,4025.6,4025.5,14.5]
[1760129098799,1.92,4026.1,4025.5,20.0181]
[1760129099007,4.40392967,4025.9,4025.5,20.0181]
[1760129099236,1.92,4026.0,4025.5,20.0181]
[1760129099401,30.0,4025.9,4025.5,20.0181]
[1760129099602,2.4839176,4025.9,4025.5,20.0181]
[1760129099948,30.0,4026.0,4025.5,20.0181]
[1760129100121,4.823,4026.0,4025.5,20.0181]
[1760129100308,1.92,4026.5,4025.6,3.65372036]
[1760129100514,1.92,4026.3,4025.6,0.67848669]
[1760129100737,10.0,4026.5,4025.6,3.62887694]
[1760129100940,2.48380218,4026.1,4025.6,1.14478669]
[1760129101234,10.4257,4026.8,4025.6,1.14478669]
[1760129101235,4.937,4026.9,4025.8,0.6336]
[1760129101453,0.38959031,4027.0,4026.7,2.48341486]
[1760129101600,0.76638653,4027.9,4026.9,0.1307]
[1760129101601,0.12218653,4027.9,4026.9,0.1307]
[1760129101801,0.12218653,4027.9,4026.8,5.933]
[1760129101802,30.0,4027.5,4027.0,20.433]
[1760129102005,2.48282731,4027.7,4027.1,3.862]
[1760129102213,3.616,4027.7,4027.2,0.02483114]
[1760129102398,18.359,4027.9,4027.2,0.49113114]
[1760129102598,25.774,4027.7,4027.2,0.4663]
[1760129102799,0.001,4028.5,4027.3,0.65843053]
[1760129103003,0.001,4028.5,4027.5,0.6336]
[1760129103240,0.001,4028.5,4027.9,14.5]
[1760129103535,0.001,4028.5,4028.1,0.6336]
[1760129103703,0.001,4028.5,4028.2,2.48244579]
[1760129104044,0.001,4028.5,4028.0,1.76164029]
[1760129104535,0.001,4028.5,4028.1,5.9568256]
[1760129104701,2.48331724,4028.5,4028.1,5.932]
[1760129104900,2.4824829,4028.3,4028.1,5.932]
[1760129105236,2.4824829,4028.3,4028.1,8.15136403]
[1760129105738,2.48249838,4028.2,4028.1,2.21936403]
[1760129106038,2.48249838,4028.2,4027.9,14.5]
[1760129106039,2.48262164,4028.0,4027.9,14.5]
[1760129106206,32.91092164,4028.0,4027.9,14.5]
[1760129106408,32.91092164,4028.0,4027.9,18.359]
[1760129106741,32.91092164,4028.0,4027.9,14.5]
[1760129106742,34.83092164,4028.0,4027.9,14.5]
[1760129107244,12.4828682,4027.6,4027.5,3.86]
[1760129107539,12.4828682,4027.6,4025.8,6.9363]
[1760129107540,32.48329589,4027.0,4026.9,2.07]
[1760129107708,3.931,4026.9,4026.7,2.07]
[1760129107910,3.931,4026.9,4026.8,3.861]
[1760129108111,6.4142998,4026.9,4026.8,18.361]
[1760129108319,0.81774262,4028.0,4026.8,20.8704]
[1760129108640,0.81774262,4028.0,4027.0,2.48321103]
[1760129108641,1.92,4027.9,4027.0,2.48321103]
[1760129108842,30.0,4027.8,4027.1,6.34416036]
[1760129109229,30.0,4027.7,4027.2,16.9830998]
[1760129109422,32.48279524,4027.8,4027.3,0.4663]
[1760129109618,2.48292985,4027.5,4026.8,2.0431]
[1760129109843,2.48317115,4027.2,4026.9,5.328]
[1760129110015,2.48317115,4027.2,4027.0,5.328]
[1760129110216,32.48317115,4027.2,4027.1,18.361]
[1760129110434,32.48317115,4027.2,4027.1,14.5]
[1760129110633,34.83147115,4027.2,4027.1,14.5]
[1760129110942,34.40317115,4027.2,4027.1,18.361]
[1760129111114,27.865,4027.2,4027.1,18.361]
[1760129111308,7.97211481,4027.2,4027.1,18.361]
[1760129112321,2.48336147,4026.8,4026.7,2.07]
[1760129112524,10.0,4026.7,4026.4,2.07]
[1760129112729,17.58142315,4026.7,4026.6,14.5]
[1760129113141,30.0,4027.4,4026.6,22.3563]
[1760129113337,1.92,4028.0,4026.8,2.48330422]
[1760129113547,2.4828601,4027.7,4026.9,6.35626023]
[1760129113761,2.4828601,4027.7,4027.0,14.5]
[1760129114362,2.48287636,4027.6,4027.0,14.5]
[1760129114527,10.0,4028.3,4027.1,2.13225602]
[1760129114728,2.48309714,4027.3,4027.2,3.871]
[1760129114924,1.92,4027.7,4026.5,0.1307]
[1760129115181,1.92,4027.4,4026.6,14.5]
[1760129115343,1.92,4027.4,4026.6,3.874]
[1760129115344,2.48342315,4026.7,4026.6,3.874]
[1760129115541,32.48342315,4026.7,4026.6,3.874]
[1760129115875,32.91172315,4026.7,4026.6,3.874]
[1760129116033,2.48360818,4026.4,4026.0,2.07]
[1760129116230,2.48412131,4025.6,4025.1,0.002]
[1760129116477,12.3531,4026.3,4025.1,0.002]
[1760129116478,1.92,4026.1,4025.2,5.361]
[1760129116688,2.3531,4026.3,4025.3,0.5363]
[1760129116689,2.48408954,4025.7,4025.3,0.5363]
[1760129117492,10.633,4025.7,4025.3,0.5363]
[1760129117652,13.622,4025.7,4025.3,0.5363]
[1760129117853,10.324,4025.7,4025.3,0.5363]
[1760129118055,2.48398416,4025.8,4025.3,0.5363]
[1760129118379,10.238,4025.7,4025.3,0.5363]
[1760129118773,2.48404168,4025.7,4025.3,0.5363]
[1760129118974,2.48411167,4025.6,4025.3,0.5363]
[1760129119189,2.48405958,4025.7,4025.3,0.5363]
[1760129119557,1.92,4025.9,4025.3,0.5363]
[1760129119793,9.416,4025.8,4025.3,0.5363]
[1760129119988,4.40371214,4026.3,4025.4,1.03073]
[1760129120191,2.48368857,4026.3,4025.4,1.03073]
[1760129120391,30.0,4026.8,4025.5,1.0744]
[1760129120592,2.48355802,4026.5,4025.7,2.48399587]
[1760129120797,1.92,4026.6,4025.7,2.48399587]
[1760129120798,2.48361191,4026.4,4025.7,2.48399587]
[1760129120998,2.48361191,4026.4,4025.8,0.991551]
[1760129121300,4.40352682,4026.6,4025.8,3.47550565]
[1760129121600,1.92,4026.6,4025.8,3.47550565]
[1760129121797,2.48351256,4026.6,4025.8,3.47550565]
[1760129121964,2.48355446,4026.5,4025.8,3.47550565]
[1760129122166,2.48355446,4026.5,4025.9,1.0273385]
[1760129122526,2.48355446,4026.5,4026.0,5.942]
[1760129122663,2.48355446,4026.5,4026.0,6.3828]
[1760129123412,2.48349019,4026.6,4026.1,0.02483793]
[1760129123612,0.38950296,4027.3,4026.5,0.1307]
[1760129123813,2.48311481,4027.2,4026.6,3.89483484]
[1760129124012,2.48311481,4027.2,4026.6,3.87]
[1760129124480,2.48299871,4027.4,4026.6,3.87]
[1760129124901,2.483124,4027.2,4026.6,3.87]
[1760129125475,4.40299253,4027.4,4026.7,0.02483423]
[1760129125781,2.48323976,4027.0,4026.8,2.07]
[1760129125999,1.92,4027.4,4026.2,0.9478088]
[1760129126197,2.48284275,4027.7,4026.1,0.7643]
[1760129126198,30.0,4027.1,4026.1,0.1307]
[1760129126376,10.0,4027.0,4026.1,0.1307]
[1760129126577,10.0,4027.0,4026.2,3.602]
[1760129126800,2.48326729,4027.0,4026.3,3.871]
[1760129127015,2.48329449,4027.0,4026.3,5.941]
[1760129127208,1.92,4027.4,4026.3,7.15236297]
[1760129127391,2.48334128,4026.9,4026.3,7.15236297]
[1760129127890,2.48346622,4026.7,4026.3,7.15236297]
[1760129128500,2.48346622,4026.7,4026.3,1.21136297]
[1760129128719,2.48309739,4027.3,4026.1,0.1307]
[1760129129019,2.48353001,4026.6,4026.4,3.869]
[1760129129216,2.48360006,4026.5,4025.9,0.6336]
[1760129129415,2.48360006,4026.5,4026.0,5.939]
[1760129129715,2.48349459,4026.6,4026.0,6.3798]
[1760129129916,2.48349459,4026.6,4026.0,7.76993304]
[1760129130519,2.48336216,4026.8,4026.0,7.76993304]
[1760129130717,2.48341816,4026.8,4026.0,7.76993304]
[1760129130884,30.0,4026.7,4026.0,7.76993304]
[1760129131084,30.0,4026.7,4025.6,2.48409379]
[1760129131085,2.48371348,4026.3,4026.1,3.867]
[1760129131304,2.48371348,4026.3,4026.2,2.07]
[1760129131515,2.48371348,4026.3,4026.2,5.936]
[1760129131696,2.48361232,4026.4,4026.2,5.936]
[1760129132013,30.0,4026.9,4026.2,5.936]
[1760129132215,2.48365978,4026.4,4026.2,5.936]
[1760129132707,30.0,4026.9,4026.2,5.936]
[1760129132907,2.48366987,4026.3,4026.2,5.936]
[1760129133108,30.0,4026.8,4025.5,2.92495135]
[1760129133413,2.48375254,4026.2,4025.6,6.28648814]
[1760129133582,2.48368978,4026.3,4025.6,8.7705752]
[1760129133782,2.48379946,4026.1,4025.6,0.35148814]
[1760129133981,2.48379946,4026.1,4025.7,5.934]
[1760129134210,2.48401262,4025.8,4025.5,0.002]
[1760129134390,2.48391663,4025.9,4025.8,2.07]
[1760129136119,7.619,4026.2,4025.8,2.07]
[1760129136419,2.48359786,4026.5,4025.9,5.933]
[1760129136619,2.48395411,4025.9,4025.5,0.002]
[1760129136803,2.48395411,4025.9,4025.6,5.931]
[1760129136804,2.48397566,4025.9,4025.6,5.931]
[1760129137295,2.48404004,4025.7,4025.6,5.931]
[1760129137497,2.48396393,4025.9,4025.6,5.931]
[1760129138521,2.48397833,4025.8,4025.6,5.931]
[1760129139085,30.0,4026.3,4025.6,5.931]
[1760129139286,0.4331,4026.4,4025.5,0.002]
[1760129139521,32.66020174,4025.6,4025.5,0.002]
[1760129140020,34.40441032,4025.1,4025.0,1e-08]
[1760129140384,4.83491032,4025.1,4025.0,1e-08]
[1760129140731,2.48471897,4024.6,4024.5,0.609]
[1760129141017,2.48471897,4024.6,4024.3,3.865]
[1760129141018,32.48484246,4024.4,4024.3,3.865]
[1760129141224,32.91534246,4024.4,4024.3,3.865]
[1760129141630,32.91534246,4024.4,4024.3,0.002]
[1760129144409,10.0,4025.0,4024.3,0.002]
[1760129144608,0.4305,4025.1,4024.3,0.002]
[1760129144609,26.03384246,4024.4,4024.3,0.002]
[1760129145135,6.65234246,4024.4,4024.3,0.002]
[1760129145521,32.91534246,4024.4,4024.3,0.002]
[1760129146040,33.30513957,4024.4,4024.3,0.002]
[1760129146440,8.68213957,4024.4,4024.3,0.002]
[1760129146612,3.30513957,4024.4,4024.3,0.002]
[1760129146812,33.30513957,4024.4,4024.3,0.002]
[1760129147137,29.38513957,4024.4,4024.3,0.002]
[1760129147340,3.98770882,4025.1,4024.3,0.002]
[1760129147341,0.55720882,4025.1,4024.3,0.002]
[1760129147514,2.4847913,4024.5,4024.3,0.002]
[1760129147706,2.48484246,4024.4,4024.3,0.002]
[1760129147906,30.0,4025.0,4024.3,0.002]
[1760129147907,2.48479406,4024.5,4024.3,0.002]
[1760129148107,2.48484246,4024.4,4024.3,0.002]
[1760129148937,32.91534246,4024.4,4024.3,0.002]
[1760129149324,33.30508306,4024.4,4024.3,0.002]
[1760129150847,3.30508306,4024.4,4024.3,0.002]
[1760129151050,33.30508306,4024.4,4024.3,0.002]
[1760129154549,33.30508306,4024.4,4023.8,0.002]
[1760129154550,32.48515122,4023.9,4023.8,0.002]
[1760129154851,32.71465122,4023.9,4023.8,0.002]
[1760129155220,33.14695122,4023.9,4023.8,0.002]
[1760129155949,3.14695122,4023.9,4023.8,0.002]
[1760129156135,33.14695122,4023.9,4023.8,0.002]
[1760129160037,3.14695122,4023.9,4023.8,0.002]
[1760129160363,33.14695122,4023.9,4023.8,0.002]
[1760129161746,33.14695122,4023.9,4022.7,2.071]
[1760129161747,2.48583076,4022.8,4022.7,2.071]
[1760129161946,32.48601615,4022.5,4022.3,0.581]
[1760129162132,32.48601615,4022.5,4022.0,2.071]
[1760129162133,32.48601615,4022.5,4022.0,3.853]
[1760129162333,32.91831615,4022.5,4022.0,3.853]
[1760129162665,34.83831615,4022.5,4021.9,0.002]
[1760129164059,31.92,4022.5,4021.9,0.002]
[1760129164266,30.0,4023.8,4022.4,4.3216]
[1760129164467,2.48553926,4023.3,4022.5,1.10386]
[1760129164633,10.602,4023.3,4022.5,1.10386]
[1760129164835,10.673,4023.3,4022.6,2.48595435]
[1760129165162,2.48553941,4023.3,4022.5,3.58986166]
[1760129165666,2.4857042,4023.1,4022.5,1.10386]
[1760129165831,2.48572315,4023.0,4022.5,0.63926]
[1760129166158,2.48565106,4023.1,4022.6,0.90533495]
[1760129166330,2.48579626,4022.9,4022.6,0.90533495]
[1760129166535,2.48574411,4023.0,4022.7,3.856]
[1760129166735,2.48574411,4023.0,4022.4,0.002]
[1760129166736,2.48589448,4022.7,4022.4,2.074]
[1760129166933,2.48601615,4022.5,4022.4,0.002]
[1760129167138,32.48601615,4022.5,4022.4,0.002]
[1760129167337,32.91831615,4022.5,4022.4,0.002]
[1760129167537,32.48601615,4022.5,4022.4,0.002]
[1760129168032,32.91831615,4022.5,4022.4,0.002]
[1760129169145,32.48601615,4022.5,4022.4,0.002]
[1760129170373,30.0,4022.8,4022.4,0.002]
[1760129170543,2.48551785,4023.4,4022.4,0.002]
[1760129170544,10.0,4023.4,4022.4,0.78516077]
[1760129170737,2.48570109,4023.1,4022.4,0.7603]
[1760129170935,2.48577419,4022.9,4022.4,0.2957]
[1760129171139,32.48555107,4023.3,4022.5,2.48600743]
[1760129171461,30.0,4023.4,4022.6,0.32463074]
[1760129171660,2.48577564,4022.9,4022.4,0.2957]
[1760129171861,2.48572545,4023.0,4022.4,0.2957]
[1760129172062,2.48581609,4022.9,4022.4,0.2957]
[1760129172368,2.48578522,4022.9,4022.4,0.2957]
[1760129172569,2.48571158,4023.0,4022.4,0.7603]
[1760129172745,30.0,4023.4,4022.5,0.32464361]
[1760129172959,30.0,4023.4,4022.4,0.7603]
[1760129173164,2.48568512,4023.1,4022.4,3.24637222]
[1760129173777,2.48571023,4023.0,4022.4,3.24637222]
[1760129174684,2.48571023,4023.0,4022.4,0.7603]
[1760129175662,2.48559314,4023.2,4022.4,0.7603]
[1760129175881,2.48577083,4022.9,4022.4,0.002]
[1760129176484,2.48578479,4022.9,4022.4,0.002]
[1760129176713,2.48601615,4022.5,4022.4,0.002]
[1760129176890,39.61601615,4022.5,4022.4,0.002]
[1760129177854,40.05191615,4022.5,4022.4,0.002]
[1760129178369,39.61601615,4022.5,4022.4,0.002]
[1760129179960,30.49101615,4022.5,4022.4,0.002]
[1760129180274,25.15001615,4022.5,4022.4,0.002]
[1760129181668,40.05191615,4022.5,4022.4,0.002]
[1760129182262,41.97191615,4022.5,4022.4,0.002]
[1760129182693,11.97191615,4022.5,4022.4,0.002]
[1760129182863,41.97191615,4022.5,4022.4,0.002]
[1760129185083,32.48626339,4022.1,4022.0,0.002]
[1760129185283,58.89742449,4022.1,4022.0,0.002]
[1760129185458,59.33332449,4022.1,4022.0,0.002]
[1760129185876,59.72333242,4022.1,4022.0,0.002]
[1760129187605,34.40632521,4022.0,4021.9,1e-08]
[1760129187777,45.38432521,4022.0,4021.9,1e-08]
[1760129187987,45.38432521,4022.0,4021.1,3.852]
[1760129187988,2.48681985,4021.2,4021.1,0.002]
[1760129188193,41.53681985,4021.2,4021.1,0.002]
[1760129188390,41.97061985,4021.2,4021.1,0.002]
[1760129188707,42.09836549,4021.2,4021.1,0.002]
[1760129190119,45.94636549,4021.2,4021.1,0.002]
[1760129190314,45.94636549,4021.2,4020.9,1e-08]
[1760129190315,44.40688169,4021.1,4020.9,1e-08]
[1760129190518,41.53688169,4021.1,4020.9,1e-08]
[1760129190816,41.97068169,4021.1,4020.9,1e-08]
[1760129196790,11.97068169,4021.1,4020.9,1e-08]
[1760129197119,41.97068169,4021.1,4020.9,1e-08]
[1760129197498,41.97068169,4021.1,4020.8,1e-08]
[1760129197499,2.48700539,4020.9,4020.8,1e-08]
[1760129197820,8.24900539,4020.9,4020.8,1e-08]
[1760129198024,8.24900539,4020.9,4020.6,1e-08]
[1760129198025,2.4871291,4020.7,4020.6,1e-08]
[1760129198225,2.48725282,4020.5,4020.4,1e-08]
[1760129198528,36.32925282,4020.5,4020.4,1e-08]
[1760129198913,46.76305282,4020.5,4020.4,1e-08]
[1760129199090,36.76305282,4020.5,4020.4,1e-08]
[1760129199299,2.48824305,4018.9,4018.8,16.573]
[1760129199499,32.91994305,4018.9,4018.8,16.573]
[1760129199827,32.91994305,4018.9,4018.8,14.5]
[1760129200192,30.4317,4018.9,4017.6,0.1341]
[1760129200396,30.4317,4018.9,4015.8,2.49011667]
[1760129200397,2.48865612,4018.3,4017.5,2.48910491]
[1760129200648,2.48865612,4018.3,4017.0,5.918]
[1760129200649,30.0,4017.7,4017.0,5.918]
[1760129200798,2.48892761,4017.8,4017.1,15.1486]
[1760129201134,30.0,4018.2,4017.1,15.1486]
[1760129201335,30.0,4018.0,4017.1,15.1486]
[1760129201629,10.77333947,4018.1,4017.1,15.1486]
[1760129201630,30.0,4017.6,4017.1,15.1486]
[1760129201795,0.383,4017.5,4017.1,14.5]
[1760129202129,30.0,4017.3,4017.1,14.5]
[1760129202699,32.48924427,4017.3,4017.1,14.5]
[1760129202920,2.48929602,4017.2,4017.1,14.5]
[1760129203137,30.0,4017.2,4017.1,14.5]
[1760129203441,2.71320149,4019.2,4017.1,16.5418]
[1760129203647,0.12369976,4019.0,4017.2,1.09239296]
[1760129203940,2.48824476,4018.9,4017.4,0.6336]
[1760129204141,36.33524305,4018.9,4018.8,0.002]
[1760129204446,40.0,4018.9,4018.8,0.002]
[1760129204646,32.87124305,4018.9,4018.8,0.002]
[1760129205209,54.07840415,4018.9,4018.8,0.002]
[1760129205549,54.46872798,4018.9,4018.8,0.002]
[1760129206904,56.38872798,4018.9,4018.8,0.002]
[1760129207519,56.38872798,4018.9,4018.3,0.002]
[1760129207520,32.48855265,4018.4,4018.3,0.002]
[1760129207727,36.33555265,4018.4,4018.3,0.002]
[1760129208041,36.71855265,4018.4,4018.3,0.002]
[1760129208248,37.74254221,4018.4,4018.3,0.002]
[1760129208452,39.66254221,4018.4,4018.3,0.002]
[1760129208951,32.48880039,4018.0,4017.9,1e-08]
[1760129209155,53.69696149,4018.0,4017.9,1e-08]
[1760129209320,54.07996149,4018.0,4017.9,1e-08]
[1760129209524,55.99996149,4018.0,4017.9,1e-08]
[1760129211656,2.48948193,4016.9,4016.8,14.5]
[1760129211840,2.48948193,4016.9,4016.1,2.074]
[1760129211841,30.0,4016.3,4016.1,2.074]
[1760129212158,30.0,4016.3,4014.6,4.92]
[1760129212159,30.0,4015.3,4014.6,4.92]
[1760129212355,32.49059799,4015.1,4014.7,14.5]
[1760129212561,30.0,4014.9,4014.7,14.5]
[1760129212764,2.49078409,4014.8,4014.7,14.5]
[1760129213054,0.229,4015.2,4014.7,14.5]
[1760129213256,2.49072459,4014.9,4014.7,14.5]
[1760129213430,12.49072459,4014.9,4014.7,14.5]
[1760129213625,2.49061748,4015.1,4014.7,14.5]
[1760129213626,10.39055363,4015.4,4014.7,14.5]
[1760129213856,0.39055363,4015.4,4014.8,0.02490784]
[1760129214056,0.39055363,4015.4,4014.7,17.44320336]
[1760129214057,0.1222167,4015.6,4014.7,2.94320336]
[1760129214253,12.91966613,4015.8,4014.7,2.49510336]
[1760129214254,10.0,4015.7,4014.7,2.49510336]
[1760129214424,2.49054426,4015.2,4014.9,14.5]
[1760129214753,27.633,4015.2,4014.9,14.5]
[1760129214954,27.876,4015.4,4014.9,14.5]
[1760129215139,2.48993513,4016.2,4014.9,14.5]
[1760129215140,0.4295,4016.1,4015.0,0.4730066]
[1760129215452,0.4295,4016.1,4014.9,14.5]
[1760129215453,30.0,4015.9,4014.9,14.5]
[1760129215767,2.49051681,4015.3,4014.9,14.5]
[1760129215962,2.49066002,4015.0,4014.9,14.5]
[1760129216256,32.49066002,4015.0,4014.9,14.5]
[1760129216547,30.0,4015.0,4014.9,14.5]
[1760129217168,30.0,4015.0,4014.6,6.995]
[1760129217169,2.49075993,4014.9,4014.6,4.92]
[1760129217319,9.643,4014.7,4014.6,4.92]
[1760129217520,12.13384614,4014.7,4014.6,4.92]
[1760129217756,12.13384614,4014.7,4014.6,19.42]
[1760129217956,30.0,4015.1,4014.6,19.42]
[1760129218160,30.0,4015.0,4014.6,23.271]
[1760129218565,2.49084614,4014.7,4014.6,23.271]
[1760129218868,32.92034614,4014.7,4014.6,4.92]
[1760129219055,34.84034614,4014.7,4014.6,4.92]
[1760129219456,35.23107424,4014.7,4014.6,4.92]
[1760129220437,35.23107424,4014.7,4013.9,14.5]
[1760129220438,32.49128051,4014.0,4013.9,14.5]
[1760129220644,25.33178051,4014.0,4013.9,14.5]
[1760129220967,2.3107281,4014.7,4013.9,14.5]
[1760129220968,30.0,4015.2,4013.9,19.804]
[1760129221137,3.854,4015.4,4014.0,2.075]
[1760129221337,9.847,4015.1,4014.6,0.002]
[1760129221678,8.74541553,4015.4,4014.6,3.858]
[1760129221839,8.851,4015.3,4014.7,2.4908024]
[1760129222029,2.49033967,4015.6,4014.7,2.4908024]
[1760129222030,10.0,4015.6,4014.7,0.67969024]
[1760129222234,30.0,4015.6,4014.8,14.5]
[1760129222489,2.67235604,4016.3,4014.8,14.5]
[1760129222490,18.541,4016.0,4014.9,0.02490722]
[1760129222693,15.762,4016.2,4015.2,2.49048869]
[1760129222891,10.1849,4016.6,4015.0,6.81966344]
[1760129222892,0.39062859,4016.6,4015.7,2.49017463]
[1760129223070,2.48953281,4016.9,4015.9,2.49008083]
[1760129223276,30.0,4016.7,4016.0,17.01493237]
[1760129223587,2.48954804,4016.8,4016.0,17.01493237]
[1760129223588,4.384,4017.1,4016.1,0.2168]
[1760129223740,32.48930299,4017.2,4016.3,0.6336]
[1760129223943,33.858,4017.6,4016.6,2.48965662]
[1760129224138,2.48897994,4017.8,4016.8,2.48954391]
[1760129224139,3.858,4017.7,4016.8,2.48954391]
[1760129224344,27.596,4017.7,4016.9,14.52489481]
[1760129224539,2.88025043,4018.0,4017.0,1.0817]
[1760129224540,0.39144712,4018.0,4017.0,1.0817]
[1760129224790,0.001,4018.0,4017.1,3.858]
[1760129224991,0.001,4018.0,4017.3,0.6336]